Cogmind - Beta 13 @@@ ROGUE MODE // 2024.04.17 @ 17:37:03 Player: Evilsquid Result: Destroyed by P-80 Master with Micro Antimatter Reactor chain reaction Performance ------------- Evolutions (9) 4500 Regions Visited (13) 2600 Robots Destroyed (237) 1185 Value Destroyed (7810) 7810 Prototype IDs (9) 180 Alien Tech Used (0) 0 Bonus (-28) -28 TOTAL SCORE: 16247 Bonus ------- High Alert Combat Kills 927 Follower Combat Kills 679 Friendly Fire -1634 Cogmind --------- Core Integrity 0/1600 Matter 178/300 Energy 109/150 System Corruption 7% Temperature Cool (18) Movement Hovering (68) Location -1/Access Parts ------- > --- POWER (3) -------- Micro Antimatter Reactor > --- PROPULSION (9) --- Centrium Leg Improved Gyrokinetic Inverter Improved Gyrokinetic Inverter Experimental Gyrokinetic Inverter > --- UTILITY (9) ------ Enhanced Optical Array Enhanced Optical Array Enhanced Optical Array Enhanced Optical Array > --- WEAPON (4) ------- (None) > --- INVENTORY (5) ---- Enhanced Quantum Rifle Enhanced Quantum Rifle Enhanced Quantum Rifle Enhanced Quantum Rifle Peak State ------------ > --- POWER ------------ Micro Antimatter Reactor Micro Antimatter Reactor > --- PROPULSION ------- Compact Wheel Improved Linear Gravjet Improved Linear Gravjet Improved Linear Gravjet Combat Antigrav System Combat Antigrav System Experimental Gyrokinetic Inverter Experimental Gyrokinetic Inverter Experimental Gyrokinetic Inverter > --- UTILITY ---------- Medium Storage Unit Enhanced Optical Array Enhanced Optical Array Enhanced Optical Array Enhanced Optical Array > --- WEAPON ----------- Enhanced Quantum Rifle Enhanced Quantum Rifle Enhanced Quantum Rifle Railgun > --- INVENTORY -------- Enhanced Quantum Rifle Enhanced Quantum Rifle Enhanced Quantum Rifle Enhanced Quantum Rifle [Rating: 142] Favorites ----------- Power Cooled Ion Engine Engine Cooled Ion Engine Power Core Light Nuclear Core Reactor Antimatter Reactor Propulsion Light Treads Treads Light Treads Leg Improved Aluminum Leg Wheel Wheel Hover Unit Backup Propulsion III Flight Unit VTOL Module Utility Large Storage Unit Device Seismic Detector Storage Large Storage Unit Processor Advanced Targeting Computer Protection Reflective Plating Weapon Improved Assault Rifle Energy Gun Heavy Beamcaster Energy Cannon Long-range Proton Cannon Ballistic Gun Improved Assault Rifle Ballistic Cannon Advanced Assault Cannon Launcher Scatter Rocket Array Slashing Weapon Power Sword Build | -11 -10 -9 -9 -8 -7 -6 -5 -4 -4 -4 -3 -2 -1 ------- Run | Yrd Mat Mat Min Mat Fac Fac Fac Fac Was Fac Res Res Acc Slots Evolved 18 | . . 2 . 2 2 2 2 2 . . 2 2 2 Power 2 | . . . . . . . . . . . 1 . 1 Propulsion 7 | . . 1 . 1 . . . 2 . . . 2 1 Utility 7 | . . 1 . 1 2 2 . . . . 1 . . Weapon 2 | . . . . . . . 2 . . . . . . Parts Attached 313 | 7 17 34 7 39 36 11 13 45 21 31 7 15 30 Power 37 | 1 2 4 1 7 4 1 1 5 2 1 2 . 6 Engine 16 | 1 1 4 . 6 3 1 . . . . . . . Core 7 | . 1 . 1 1 1 . 1 2 . . . . . Reactor 14 | . . . . . . . . 3 2 1 2 . 6 Propulsion 115 | 2 4 18 3 17 11 5 5 10 1 11 2 13 13 Treads 65 | 2 4 18 2 17 11 2 1 7 . . 1 . . Leg 4 | . . . 1 . . . . . . 2 . . 1 Wheel 8 | . . . . . . 3 2 1 . . . . 2 Hover 37 | . . . . . . . 1 2 1 9 1 13 10 Flight 1 | . . . . . . . 1 . . . . . . Utility 85 | 2 1 6 1 9 16 4 2 17 10 10 2 1 4 Device 36 | 1 . . . 2 8 2 1 8 5 6 2 1 . Storage 9 | 1 1 . . 1 2 . . 1 1 1 . . 1 Processor 6 | . . . . . 1 1 . . . 1 . . 3 Hackware . | . . . . . . . . . . . . . . Protection 34 | . . 6 1 6 5 1 1 8 4 2 . . . Artifact . | . . . . . . . . . . . . . . Weapon 76 | 2 10 6 2 6 5 1 5 13 8 9 1 1 7 Energy Gun 15 | . . . . . . . . . 4 3 1 1 6 Energy Cannon 3 | . . . . . . . . 1 2 . . . . Ballistic Gun 49 | 2 10 6 2 6 5 1 5 11 . . . . 1 Ballistic Cannon 1 | . . . . . . . . 1 . . . . . Launcher 7 | . . . . . . . . . 2 5 . . . Special Weapon . | . . . . . . . . . . . . . . Impact Weapon . | . . . . . . . . . . . . . . Slashing Weapon 1 | . . . . . . . . . . 1 . . . Piercing Weapon . | . . . . . . . . . . . . . . Special Melee Weapon . | . . . . . . . . . . . . . . Unidentified Prototypes 9 | . . 3 . 1 1 . . . 1 2 . . 1 Parts Lost 90 | . . 1 2 2 7 6 3 9 8 11 3 19 19 Power 7 | . . . . 1 1 . . . 1 . . 2 2 Propulsion 37 | . . . 2 . . 5 1 1 3 5 1 6 13 Utility 30 | . . 1 . 1 6 1 2 4 2 5 . 8 . Weapon 16 | . . . . . . . . 4 2 1 2 3 4 Highest Loss Streak 17 | . . 1 2 1 3 3 1 5 8 4 3 8 17 To Critical Strikes . | . . . . . . . . . . . . . . Average Slot Usage (%) 93 | . 99 99 98 99 98 89 99 94 69 89 75 68 50 Engine 5 | . 1 11 10 8 5 6 1 . . . . . . Core 1 | . 12 . . . 1 . 3 2 . . . . . Reactor 1 | . . . . . . . . 2 4 5 4 5 4 Treads 23 | . 27 32 26 35 30 18 4 21 1 . 2 . . Hover 3 | . . . . . . . 2 4 8 22 19 31 22 Device 12 | . 14 1 . 8 17 20 17 20 16 17 19 14 . Storage 7 | . 14 11 11 9 7 6 5 5 4 3 . . 1 Processor 2 | . . . . . 3 11 11 10 . 3 4 4 15 Protection 13 | . . 20 22 17 14 11 10 3 12 13 9 3 . Energy Gun 2 | . . . . . . . . . 10 18 4 8 4 Ballistic Gun 15 | . 27 21 21 17 15 13 23 13 . . . . . Naked Turns 86 | . . . . . . . . . 86 . . . . Heaviest Build 145 | 14 32 48 44 72 117 110 117 135 139 145 70 64 67 Greatest Support 128 | 40 40 63 63 82 82 80 36 128 128 68 74 128 104 Greatest Overweight (x) 40 | . 1 . 3 . 1 10 11 10 40 5 1 1 2 Average Overweight (x) . | . . . . . . 1 4 1 2 1 . . . Largest Inventory Capacity 25 | 8 15 15 15 20 25 25 25 25 25 25 5 5 10 Average Capacity 16 | 6 14 15 15 17 24 25 25 25 6 7 5 5 6 Most Carried 25 | 2 15 15 15 20 25 25 25 25 24 7 5 5 9 Average Carried 15 | 1 10 14 14 17 24 24 24 24 5 4 2 4 4 Final Capacity 25 | 8 15 15 15 20 25 25 25 25 5 5 5 5 5 Final Carried 25 | 2 15 15 15 20 25 24 25 24 4 3 2 5 4 Class Distribution -------------------- 48% | Mutant 27% | Scavenger-Mutant 8% | Tank 5% | Gunner 4% | Derelict-Tank Dominant Class ---------------- Mutant | -10/Materials Mutant | -9/Materials Mutant | -9/Mines Mutant | -8/Materials Scavenger-Mutant | -7/Factory Scavenger-Mutant | -6/Factory Scavenger-Gunner | -5/Factory Gunner | -4/Factory Tank | -4/Waste Tank | -4/Factory Infiltrator-Mutant | -3/Research Infiltrator-Tank | -2/Research Mutant | -1/Access Resources | -11 -10 -9 -9 -8 -7 -6 -5 -4 -4 -4 -3 -2 -1 ----------- Run | Yrd Mat Mat Min Mat Fac Fac Fac Fac Was Fac Res Res Acc Matter Collected 8317 | 318 587 1493 162 1635 1205 312 283 973 207 766 79 11 286 Remotely 299 | . . . . . . . . 299 . . . . . Salvage Created 11377 | 89 635 2698 185 2926 1518 394 352 1159 325 857 79 . 160 Parts 628 | 5 34 191 10 171 79 24 23 57 1 22 8 . 3 Haulers Intercepted 19 | . 2 5 . 6 3 . . 1 . 2 . . . Recyclers Shooed 15 | 2 . 1 . 2 1 3 . 3 . . 1 1 1 Parts Field Recycled . | . . . . . . . . . . . . . . Retrieved Matter . | . . . . . . . . . . . . . . Parts Self-Destructed . | . . . . . . . . . . . . . . Prevented . | . . . . . . . . . . . . . . Kills | -11 -10 -9 -9 -8 -7 -6 -5 -4 -4 -4 -3 -2 -1 ------- Run | Yrd Mat Mat Min Mat Fac Fac Fac Fac Was Fac Res Res Acc Combat Hostiles Destroyed 173 | . 9 54 4 48 23 5 5 14 2 9 . . . Guns 159 | . 9 54 4 48 23 5 5 8 . 3 . . . Cannons 6 | . . . . . . . . 6 . . . . . AOE 8 | . . . . . . . . . 2 6 . . . Classes Destroyed 19 | 2 4 7 . 3 1 . . . 1 1 . . . Worker 11 | . 1 2 . 1 2 2 . . . . 3 . . Builder 7 | . . 1 . 1 2 . 1 . . 1 1 . . Tunneler 4 | 1 1 . 1 . . . . 1 . . . . . Hauler 19 | . 2 5 . 6 3 . . 1 . 2 . . . Recycler 15 | 1 1 2 . 4 3 1 . 2 . . . . 1 Mechanic 2 | . . 1 . 1 . . . . . . . . . Operator 1 | . . . . 1 . . . . . . . . . Watcher 11 | . 2 3 . 2 1 1 1 . . 1 . . . Swarmer 26 | . . 7 . 6 9 3 1 . . . . . . Cutter 2 | . . . . . . . . . . 2 . . . Grunt 82 | . 9 33 3 25 1 . . 8 . 3 . . . Brawler 3 | . . 1 . 1 . . 1 . . . . . . Duelist 4 | . . 2 1 1 . . . . . . . . . Protector 2 | . . 1 . 1 . . . . . . . . . Sentry 28 | . . 10 . 10 5 1 1 . . 1 . . . Specialist 2 | . . . . 2 . . . . . . . . . Hunter 8 | . . . . 2 3 . 2 . . 1 . . . Programmer 14 | . . . . . 5 1 . 6 . 2 . . . Compactor 2 | . . . . . . . . . 2 . . . . Surgeon 2 | . . . . . . . . . . 2 . . . Wasp 2 | . . . . . . . . . . 2 . . . Thug 2 | . . . . . . . . . . 2 . . . Best Kill Streak 12 | 1 4 6 2 8 12 3 3 6 1 6 4 . 1 Combat Bots Only 6 | . 4 5 2 6 5 3 2 5 1 5 . . . Max Kills in Single Turn 4 | 1 1 2 2 1 2 1 1 1 1 4 1 . 1 Gunslinging 1 | . . 1 1 . . . . . . . . . . Exploded 4 | . . . . . . . . . 1 4 . . . Melee . | . . . . . . . . . . . . . . Uniques/NPCs Destroyed . | . . . . . . . . . . . . . . Combat | -11 -10 -9 -9 -8 -7 -6 -5 -4 -4 -4 -3 -2 -1 -------- Run | Yrd Mat Mat Min Mat Fac Fac Fac Fac Was Fac Res Res Acc Hostile Shots Fired 1717 | . 55 206 31 287 392 90 29 88 21 74 41 186 217 Missed 534 | . 16 54 7 89 110 33 5 24 2 35 22 68 69 Damage Taken 19138 | . 493 2140 478 2173 2159 487 468 1218 913 1470 712 2504 3923 Core 3800 | . 43 259 67 145 184 35 23 111 738 115 94 342 1644 Absorbed by Shields 1866 | . . . . 636 877 188 75 . . 90 . . . Redirected to Shielding 311 | . . . . . 45 33 29 103 . . 69 32 . Ignored by Resistances 181 | . . . . 112 69 . . . . . . . . Regen/Repaired (Parts) 707 | . 330 . . 350 . . . . 27 . . . . Core Remaining (%) 72 | 100 82 . 18 73 73 95 97 . . 16 92 76 . Volleys Fired 739 | 12 69 188 20 211 110 29 14 28 6 24 6 5 17 Largest 4 | 2 2 2 2 2 2 2 4 4 2 4 1 3 4 Hottest 338 | 40 40 46 46 48 56 56 112 134 98 338 88 250 260 Shots Fired 1581 | 24 138 376 34 422 222 58 58 113 13 76 6 12 29 Gun 1534 | 24 138 376 34 422 222 58 58 85 1 69 6 12 29 Cannon 30 | . . . . . . . . 28 2 . . . . Launcher 17 | . . . . . . . . . 10 7 . . . Special . | . . . . . . . . . . . . . . Kinetic 1447 | 24 138 376 34 422 222 58 58 113 2 . . . . Thermal 117 | . . . . . . . . . 1 69 6 12 29 Explosive 17 | . . . . . . . . . 10 7 . . . Electromagnetic . | . . . . . . . . . . . . . . Robot Hit Streak 24 | 5 9 21 21 17 14 14 24 12 6 12 5 7 6 Robot Miss Streak 9 | 3 5 4 1 5 7 5 1 3 . 9 1 2 2 Penetration Max 1 | . . . . . 1 . . 1 . . . . . Secondary Targets 20 | . 2 7 2 6 1 . 1 . . 1 . . . Max Gunslinging Chain 1 | . 1 1 1 1 1 . 1 . . 1 . . . Shots Hit Robots 1101 | 15 87 274 30 312 135 44 43 79 6 43 5 8 20 Core Hits 520 | 4 32 103 10 136 62 16 16 63 5 64 5 . 4 Critical Kills 8 | . . 2 . 1 3 . 2 . . . . . . Critical Parts Destroyed 10 | 1 1 3 1 1 2 . 1 . . . . . . Critical Strikes 27 | 1 1 5 1 3 5 1 3 . . 6 1 . . Burn 7 | . . . . . . . . . . 6 1 . . Destroy 20 | 1 1 5 1 3 5 1 3 . . . . . . Melee Attacks 1 | . . . . . . . . . . 1 . . . Impact . | . . . . . . . . . . . . . . Slashing 1 | . . . . . . . . . . 1 . . . Piercing . | . . . . . . . . . . . . . . Sneak Attacks . | . . . . . . . . . . . . . . Combat Hostiles . | . . . . . . . . . . . . . . Follow-up Attacks . | . . . . . . . . . . . . . . Damage Inflicted 23073 | 158 932 4307 499 4843 2652 896 713 2228 1575 3208 174 216 672 Guns 18564 | 158 929 4292 459 4831 2646 891 635 1691 28 1060 141 194 609 Cannons 571 | . . . . . . . . 512 59 . . . . Explosions 3729 | . . . . . . . 78 15 1488 2148 . . . Melee . | . . . . . . . . . . . . . . Ramming 209 | . 3 15 40 12 6 5 . 10 . . 33 22 63 Kinetic 17104 | 158 929 4292 459 4831 2646 891 635 2203 60 . . . . Thermal 2124 | . . . . . . . 78 15 27 1060 141 194 609 Explosive 3369 | . . . . . . . . . 1488 1881 . . . Electromagnetic 267 | . . . . . . . . . . 267 . . . Impact . | . . . . . . . . . . . . . . Slashing . | . . . . . . . . . . . . . . Piercing . | . . . . . . . . . . . . . . Highest Corruption 7 | . . . . . 3 . 2 4 4 2 5 6 7 Average Corruption 1 | . . . . . 2 . 2 1 1 1 2 2 3 Corruption Purged 5 | . . . . . 2 . . . 3 . . . . Corruption Blocked . | . . . . . . . . . . . . . . Effects 71 | . . . . . 26 . 5 7 15 13 1 1 3 Message Errors 19 | . . . . . 7 . 2 2 5 2 . . 1 Matter Fused 14 | . . . . . 7 . . . 4 2 1 . . Heat Flow Errors 10 | . . . . . 5 . . 1 1 3 . . . Energy Discharges 10 | . . . . . 2 . . 2 3 1 . 1 1 Parts Rejected 2 | . . . . . . . . 1 . . . . 1 Parts Fused 1 | . . . . . 1 . . . . . . . . Data Loss (minor) 3 | . . . . . 1 . . . . 2 . . . Data Loss (major) 3 | . . . . . 1 . 1 . . 1 . . . Misfires 7 | . . . . . 2 . 2 1 1 1 . . . Alerts 2 | . . . . . . . . . 1 1 . . . Overload Shots . | . . . . . . . . . . . . . . Overflow Damage 265 | . . . . . 119 . 48 4 72 22 . . . Projectiles 4 | . . . . . . . . 4 . . . . . Explosions 261 | . . . . . 119 . 48 . 72 22 . . . Melee . | . . . . . . . . . . . . . . Knockbacks 5 | . . . . . . . . 5 . . . . . Impact 1 | . . . . . . . . 1 . . . . . Kinetic 4 | . . . . . . . . 4 . . . . . Secondary . | . . . . . . . . . . . . . . Self-Inflicted Damage 742 | . . . . . 218 . 45 56 . 366 16 10 31 Shots 19 | . . . . . 2 . 1 1 . 15 . . . Rammed 29 | . 1 2 4 2 1 2 . 1 . . 3 9 4 Targets Rammed 33 | . 2 3 5 3 1 2 . 1 . . 3 9 4 Kicked . | . . . . . . . . . . . . . . Crushed 4 | . 1 1 1 1 . . . . . . . . . Highest Temperature 557 | . 51 219 84 103 122 . . 58 204 294 209 557 461 Average Temperature 105 | . 12 62 30 26 36 . . 23 88 98 93 300 130 Received Heat Transfer 3059 | . 315 795 120 870 216 36 92 102 . 111 66 45 291 Effects 44 | . . 2 . . . . . . . . . 36 6 Shutdowns 17 | . . . . . . . . . . . . 14 3 Energy Bleed 5 | . . . . . . . . . . . . 5 . Interference 9 | . . 2 . . . . . . . . . 6 1 Matter Decay 5 | . . . . . . . . . . . . 5 . Short Circuit 2 | . . . . . . . . . . . . 2 . Damage (minor) 1 | . . . . . . . . . . . . 1 . Damage (major) 5 | . . . . . . . . . . . . 3 2 Siege Activations . | . . . . . . . . . . . . . . Robots Corrupted 1 | . . . . . . . . . . 1 . . . Combat Hostiles . | . . . . . . . . . . . . . . Parts Fried . | . . . . . . . . . . . . . . Impact Corruptions . | . . . . . . . . . . . . . . Robots Melted 1 | . . . . . . . . . . 1 . . . Combat Hostiles . | . . . . . . . . . . . . . . Parts Melted 4 | . . . . . . . . . . 4 . . . Heat Transferred 3369 | . . . . . . . 50 50 50 1924 259 296 740 Parts Sabotaged . | . . . . . . . . . . . . . . Parts Stolen . | . . . . . . . . . . . . . . Parts Stripped . | . . . . . . . . . . . . . . Power Chain Reactions . | . . . . . . . . . . . . . . Alert | -11 -10 -9 -9 -8 -7 -6 -5 -4 -4 -4 -3 -2 -1 ------- Run | Yrd Mat Mat Min Mat Fac Fac Fac Fac Was Fac Res Res Acc Peak Influence 1052 | 10 218 1052 426 916 565 267 295 359 153 914 465 302 350 Initial 416 | . 6 4 396 50 416 267 36 46 79 . 415 244 160 Average 247 | 3 48 452 264 289 327 144 184 82 21 355 433 259 196 Maximum Alert Level 3 | . 1 3 2 3 2 1 1 1 . 3 2 1 1 Low Security (%) 48 | 100 90 21 26 49 14 61 50 92 100 46 . . 51 Level 1 29 | . 9 35 40 24 58 38 49 7 . 1 . 100 48 Level 2 15 | . . 19 32 13 26 . . . . 39 100 . . Level 3 6 | . . 23 . 11 . . . . . 12 . . . Level 4 . | . . . . . . . . . . . . . . Level 5 . | . . . . . . . . . . . . . . High Security . | . . . . . . . . . . . . . . Max Security . | . . . . . . . . . . . . . . Sterilizations 1 | . . 1 . . . . . . . . . . . Squads Dispatched 51 | . 2 10 . 7 10 2 . 5 . 6 1 3 5 Investigation 10 | . 1 5 . 3 . . . . . 1 . . . Extermination 11 | . . . . . 5 1 . 2 . 2 . . 1 Reinforcement 23 | . 1 3 . 2 2 1 . 3 . 3 1 3 4 Assault 3 | . . 2 . 1 . . . . . . . . . Garrison 4 | . . . . 1 3 . . . . . . . . Intercept . | . . . . . . . . . . . . . . Searches Triggered . | . . . . . . . . . . . . . . Construction Impeded 2 | . . . . . . . . 1 . 1 . . . Haulers Reinforced 2 | . . . . . . . . 1 . 1 . . . Active Scanning Responses . | . . . . . . . . . . . . . . Cargo Convoy Interrupts . | . . . . . . . . . . . . . . Stealth | -11 -10 -9 -9 -8 -7 -6 -5 -4 -4 -4 -3 -2 -1 --------- Run | Yrd Mat Mat Min Mat Fac Fac Fac Fac Was Fac Res Res Acc Distress Signals 12 | . 1 2 . 2 1 2 . 1 . 1 1 1 . Communications Jammed 6 | . . . . . . . . 4 . . . 2 . Distress Signals 6 | . . . . . . . . 4 . . . 2 . Times Spotted 336 | . 21 68 4 69 32 9 5 18 6 30 13 30 31 Peak Tracking Total 16 | . 5 10 2 6 6 4 2 4 4 7 13 16 15 Tactical Retreats 23 | . 1 2 . 2 1 1 . 1 . 5 . 3 7 Traps | -11 -10 -9 -9 -8 -7 -6 -5 -4 -4 -4 -3 -2 -1 ------- Run | Yrd Mat Mat Min Mat Fac Fac Fac Fac Was Fac Res Res Acc Traps Triggered 22 | . 3 3 . . 3 . 3 9 . . 1 . . Indirectly . | . . . . . . . . . . . . . . Trap Hack Attempts . | . . . . . . . . . . . . . . Triggered . | . . . . . . . . . . . . . . Disarmed . | . . . . . . . . . . . . . . Reprogrammed . | . . . . . . . . . . . . . . Reused . | . . . . . . . . . . . . . . Traps Extracted . | . . . . . . . . . . . . . . Installed . | . . . . . . . . . . . . . . Triggered . | . . . . . . . . . . . . . . Machines | -11 -10 -9 -9 -8 -7 -6 -5 -4 -4 -4 -3 -2 -1 ---------- Run | Yrd Mat Mat Min Mat Fac Fac Fac Fac Was Fac Res Res Acc Machines Disabled 24 | . . 3 . 1 4 . 3 6 . 7 . . . Max in Single Turn 4 | . . 1 . 1 2 . 3 4 . 2 . . . Garrison Access 3 | . . . . 1 1 . . 1 . . . . . Machines Repaired . | . . . . . . . . . . . . . . Machines Dismantled . | . . . . . . . . . . . . . . Machines Sabotaged . | . . . . . . . . . . . . . . Overloaded Fab Kills . | . . . . . . . . . . . . . . Hacking | -11 -10 -9 -9 -8 -7 -6 -5 -4 -4 -4 -3 -2 -1 --------- Run | Yrd Mat Mat Min Mat Fac Fac Fac Fac Was Fac Res Res Acc Machines Accessed 37 | . 6 5 . 11 6 2 1 4 . 1 1 . . Terminals 21 | . 4 3 . 8 4 . 1 1 . . . . . Fabricators 2 | . . . . . 1 . . . . 1 . . . Repair Stations 4 | . 1 . . 2 . 1 . . . . . . . Recycling Units 5 | . 1 1 . . . . . 2 . . 1 . . Scanalyzers 2 | . . 1 . . . 1 . . . . . . . Garrison Access 3 | . . . . 1 1 . . 1 . . . . . Total Hacks 110 | . 17 17 . 42 15 6 2 8 . 2 1 . . Successful 54 | . 14 9 . 23 2 2 . 3 . . 1 . . Failed 56 | . 3 8 . 19 13 4 2 5 . 2 . . . Catastrophic 8 | . . 2 . 3 3 . . . . . . . . Database Lockouts . | . . . . . . . . . . . . . . Manual 64 | . 9 14 . 27 11 . 2 1 . . . . . Terminals 65 | . 9 11 . 31 11 . 2 1 . . . . . Fabricators 4 | . . . . . 2 . . . . 2 . . . Repair Stations 19 | . 6 . . 9 . 4 . . . . . . . Recycling Units 11 | . 2 2 . . . . . 6 . . 1 . . Scanalyzers 6 | . . 4 . . . 2 . . . . . . . Garrison Access 5 | . . . . 2 2 . . 1 . . . . . Terminal Hacks 13 | . 3 2 . 8 . . . . . . . . . Record 1 | . . . . 1 . . . . . . . . . Part Schematic 2 | . 2 . . . . . . . . . . . . Robot Analysis 5 | . . 2 . 3 . . . . . . . . . Branch Access Points 1 | . . . . 1 . . . . . . . . . Emergency Access Points 1 | . . . . 1 . . . . . . . . . Unreport Threat 2 | . . . . 2 . . . . . . . . . Zone Layout 1 | . 1 . . . . . . . . . . . . Fabricator Hacks . | . . . . . . . . . . . . . . Repair Station Hacks 15 | . 6 . . 8 . 1 . . . . . . . Scan Component 8 | . 3 . . 4 . 1 . . . . . . . Repair 7 | . 3 . . 4 . . . . . . . . . Recycling Unit Hacks 4 | . 1 . . . . . . 2 . . 1 . . Report Inventory 3 | . 1 . . . . . . 1 . . 1 . . Retrieve Components 1 | . . . . . . . . 1 . . . . . Scanalyzer 5 | . . 4 . . . 1 . . . . . . . Insert Component 3 | . . 2 . . . 1 . . . . . . . Analyze 2 | . . 2 . . . . . . . . . . . Garrison Access Hacks 3 | . . . . 1 1 . . 1 . . . . . Seal Access 3 | . . . . 1 1 . . 1 . . . . . Unauthorized Hacks 14 | . 4 3 . 6 1 . . . . . . . . Terminals 13 | . 4 2 . 6 1 . . . . . . . . Botnet 13 | . 4 2 . 6 1 . . . . . . . . Fabricators . | . . . . . . . . . . . . . . Repair Stations . | . . . . . . . . . . . . . . Recycling Units 1 | . . 1 . . . . . . . . . . . Tunnel 1 | . . 1 . . . . . . . . . . . Scanalyzers . | . . . . . . . . . . . . . . Garrison Access . | . . . . . . . . . . . . . . Data Cores Recovered 1 | . . . . 1 . . . . . . . . . Used . | . . . . . . . . . . . . . . Hacking Detections 30 | . 6 3 . 9 5 2 1 3 . 1 . . . Full Trace Events 7 | . . 2 . 4 . . . . . 1 . . . Feedback Events . | . . . . . . . . . . . . . . Feedback Blocked . | . . . . . . . . . . . . . . Robot Schematics Acquired . | . . . . . . . . . . . . . . Robots Built . | . . . . . . . . . . . . . . Authchips . | . . . . . . . . . . . . . . Time . | . . . . . . . . . . . . . . Total Robot Build Rating . | . . . . . . . . . . . . . . Part Schematics Acquired 4 | . 2 2 . . . . . . . . . . . Parts Built . | . . . . . . . . . . . . . . Authchips . | . . . . . . . . . . . . . . Time . | . . . . . . . . . . . . . . Total Part Build Rating . | . . . . . . . . . . . . . . Parts Repaired 7 | . 3 . . 4 . . . . . . . . . Time 256 | . 78 . . 178 . . . . . . . . . Parts Recycled . | . . . . . . . . . . . . . . Recycled Matter . | . . . . . . . . . . . . . . Retrieved Matter . | . . . . . . . . . . . . . . Retrieved Components 1 | . . . . . . . . 1 . . . . . Parts Scanalyzed 3 | . . 2 . . . 1 . . . . . . . Part Schematics Acquired 2 | . . 2 . . . . . . . . . . . Parts Damaged 1 | . . . . . . 1 . . . . . . . Bothacking | -11 -10 -9 -9 -8 -7 -6 -5 -4 -4 -4 -3 -2 -1 ------------ Run | Yrd Mat Mat Min Mat Fac Fac Fac Fac Was Fac Res Res Acc Used RIF Installer . | . . . . . . . . . . . . . . Robots Hacked . | . . . . . . . . . . . . . . Non-combat . | . . . . . . . . . . . . . . Combat . | . . . . . . . . . . . . . . Robot Hacks Applied . | . . . . . . . . . . . . . . Relay Couplers Released 2 | . . . . . . . . 2 . . . . . Machine Destruction 2 | . . . . . . . . 2 . . . . . Fabnet Peak Effective % . | . . . . . . . . . . . . . . Robots Rewired . | . . . . . . . . . . . . . . Allies Hacked 1 | . . . . . . . . . . 1 . . . Hacks Repelled . | . . . . . . . . . . . . . . Allies | -11 -10 -9 -9 -8 -7 -6 -5 -4 -4 -4 -3 -2 -1 -------- Run | Yrd Mat Mat Min Mat Fac Fac Fac Fac Was Fac Res Res Acc Total Allies 18 | . . . . . . . . . 18 . . . . Largest Group 18 | . . . . . . . . . 18 18 . . . Highest-Rated Group 656 | . . . . . . . . . 656 654 . . . Highest-Rated Ally 50 | . . . . . . . . . 50 50 . . . Total Orders . | . . . . . . . . . . . . . . Ally Attacks 189 | . . . . . . . . . 53 136 . . . Total Damage 5277 | . . . . . . . . . 2112 3165 . . . Kills 20 | . . . . . . . . . 4 16 . . . Allies Corrupted 1 | . . . . . . . . . . 1 . . . Allies Melted . | . . . . . . . . . . . . . . Intel | -11 -10 -9 -9 -8 -7 -6 -5 -4 -4 -4 -3 -2 -1 ------- Run | Yrd Mat Mat Min Mat Fac Fac Fac Fac Was Fac Res Res Acc Robot Analysis Total 5 | . . 2 . 3 . . . . . . . . . Derelict Logs Recovered 1 | . . . 1 . . . . . . . . . . Drone Launches . | . . . . . . . . . . . . . . Drone Recoveries . | . . . . . . . . . . . . . . Exploration | -11 -10 -9 -9 -8 -7 -6 -5 -4 -4 -4 -3 -2 -1 ------------- Run | Yrd Mat Mat Min Mat Fac Fac Fac Fac Was Fac Res Res Acc Turns Passed 20182 | 174 1925 2890 1085 3538 3734 1040 451 1202 1979 1213 195 345 411 Spaces Moved 9268 | 81 928 1300 492 1512 1218 363 228 520 728 806 190 424 478 Core 399 | 1 . . . . . . . . 145 . . 105 148 Treads 6310 | 80 928 1300 490 1512 1218 331 1 406 44 . . . . Legs 43 | . . . 2 . . . . . . 41 . . . Wheels 382 | . . . . . . 32 226 114 . . . . 10 Hover 2134 | . . . . . . . 1 . 539 765 190 319 320 Flight . | . . . . . . . . . . . . . . Fastest Speed 35 | 50 160 160 160 158 158 116 131 140 50 45 46 50 35 Average Speed 170 | 158 160 160 204 160 238 246 151 186 259 128 89 58 53 Slowest Speed 2050 | 160 240 160 330 162 242 560 610 480 2050 476 152 144 130 Overloaded Moves . | . . . . . . . . . . . . . . Propulsion Burnouts . | . . . . . . . . . . . . . . Robots Hopped . | . . . . . . . . . . . . . . Cave-ins Triggered . | . . . . . . . . . . . . . . Exploration Rate (%) 42 | 5 96 89 91 92 30 7 4 11 97 25 9 19 13 Regions Visited 13 Branch Regions 1 Pre-discovered Areas 1 | . . 1 . . . . . . . . . . . Known Exits Taken 1 | . . . . 1 . . . . . . . . . Unknown Exits Taken 10 | 1 1 1 1 . 1 1 1 . . 1 1 1 . Scrap Searched 1 | . . . 1 . . . . . . . . . . Spaces Dug 62 | . . . . . 2 . . . 29 31 . . . Terrain Destroyed 417 | . . . . . 43 1 57 32 93 191 . . . Melee 1 | . . . . . . . . . . 1 . . . Projectile 25 | . . . . . 2 1 3 12 . 7 . . . AOE 391 | . . . . . 41 . 54 20 93 183 . . . Terrain Rammed . | . . . . . . . . . . . . . . Walls Destroyed . | . . . . . . . . . . . . . . Machines Disabled . | . . . . . . . . . . . . . . Actions | -11 -10 -9 -9 -8 -7 -6 -5 -4 -4 -4 -3 -2 -1 --------- Run | Yrd Mat Mat Min Mat Fac Fac Fac Fac Was Fac Res Res Acc Total 12135 | 101 1240 1752 534 2213 1825 444 300 678 808 919 207 510 604 Wait 1437 | . 187 165 1 393 430 30 16 60 30 29 . 40 56 Move 9256 | 80 927 1299 491 1511 1217 362 227 520 727 805 189 423 478 Hop . | . . . . . . . . . . . . . . Pick Up 135 | 2 22 20 5 19 11 4 5 11 10 9 1 7 9 Fast Attach 154 | 7 7 4 2 14 10 7 8 27 11 21 3 11 22 Attach 49 | . 1 4 2 3 5 2 3 7 7 2 3 3 7 Detach 18 | . . 1 . 1 2 1 1 1 2 . . 4 5 Swap 110 | . 9 26 3 22 21 2 2 11 3 8 1 1 1 Drop 183 | . 16 42 5 36 14 5 8 12 12 20 1 7 5 Fire 739 | 12 69 188 20 211 110 29 14 28 6 24 6 5 17 Melee 1 | . . . . . . . . . . 1 . . . Ram 16 | . . . . . . . . . . . 3 9 4 Kick . | . . . . . . . . . . . . . . Crush 17 | . 2 3 5 3 1 2 . 1 . . . . . Escape Stasis 20 | . . . . . 4 . 16 . . . . . . Rewire . | . . . . . . . . . . . . . . Trap . | . . . . . . . . . . . . . . Miscellaneous . | . . . . . . . . . . . . . . Route ------- -11/Scrapyard -10/Materials (discovered 5 exits: *Mat x3 / [*Min x2]) -9/Materials (discovered 4 exits: *Mat x2 / [*Min x2]) -9/Mines (discovered 2 exits: *Mat x2) -8/Materials (discovered 3 exits: *Fac x3) -7/Factory -6/Factory -5/Factory -4/Factory -4/Waste -4/Factory -3/Research -2/Research -1/Access History --------- Turn | Location | Event 31 | -11/Scrapyard | Discovered new exit (range 16) 175 | -11/Scrapyard | Entered Materials 309 | -10/Materials | Build established: Mutant 437 | -10/Materials | Discovered new exit (range 8) 856 | -10/Materials | Repaired Lgt. Assault Rifle 884 | -10/Materials | Repaired Lgt. Treads 911 | -10/Materials | Repaired Lgt. Treads 1118 | -10/Materials | Discovered new exit (range 12) 1341 | -10/Materials | Discovered new exit (range 6) 1730 | -10/Materials | Discovered new exit (range 6) 1968 | -10/Materials | Discovered new exit (range 7) 2100 | -10/Materials | Entered another Materials area 2100 | -9/Materials | Evolved 2 slots: Propulsion x1, Utility x1 2608 | -9/Materials | Build established: Scavenger-Mutant 2661 | -9/Materials | Discovered new exit (range 11) 3155 | -9/Materials | Discovered new exit (range 16) 3176 | -9/Materials | Build established: Mutant 3638 | -9/Materials | Discovered new exit (range 14) 4316 | -9/Materials | Discovered new exit (range 11) 4500 | -9/Materials | First assault squad dispatched 4705 | -9/Materials | Core integrity fell below 50% 4717 | -9/Materials | Sterilization system engaged 4717 | -9/Materials | Non-combat units ordered to evacuate 4817 | -9/Materials | Combat units ordered to evacuate 4990 | -9/Materials | Entered Mines 5027 | -9/Mines | Core integrity fell below 20% 5664 | -9/Mines | Learned 4 Materials zone layouts 5674 | -9/Mines | Received a Rocket Launcher from a helpful Derelict 5799 | -9/Mines | Discovered new exit (range 14) 5952 | -9/Mines | A Derelict revealed a hidden shortcut to a safe place 5953 | -9/Mines | Discovered new exit (range 8) 6075 | -9/Mines | Entered Materials 6075 | -8/Materials | Evolved 2 slots: Propulsion x1, Utility x1 6076 | -8/Materials | Identified exit to Factory 6530 | -8/Materials | Repaired Imp. Assault Rifle 6776 | -8/Materials | Repaired Hardlight Generator 7127 | -8/Materials | Garrison activated, responded to threat 7533 | -8/Materials | Discovered exit to Factory (range 8) 8863 | -8/Materials | Repaired Arm. Treads 8915 | -8/Materials | Repaired Cld. Ion Engine 9255 | -8/Materials | Discovered exit to Factory (range 4) 9275 | -8/Materials | First assault squad dispatched 9613 | -8/Materials | Entered Factory 9613 | -7/Factory | Evolved 2 slots: Utility x2 9696 | -7/Factory | Build established: Scavenger-Mutant 10470 | -7/Factory | Garrison activated, responded to threat 12053 | -7/Factory | Lost 3 parts (3u) 13263 | -7/Factory | Discovered new exit (range 5) 13347 | -7/Factory | Entered another Factory area 13347 | -6/Factory | Evolved 2 slots: Utility x2 13534 | -6/Factory | Lost 3 parts (3n) 13781 | -6/Factory | Discovered new exit (range 11) 14262 | -6/Factory | Lost 3 parts (2n1u) 14387 | -6/Factory | Entered another Factory area 14387 | -5/Factory | Evolved 2 slots: Weapon x2 14650 | -5/Factory | Discovered new exit (range 16) 14742 | -5/Factory | Build established: Scavenger-Gunner 14838 | -5/Factory | Entered another Factory area 14838 | -4/Factory | Evolved 2 slots: Propulsion x2 14958 | -4/Factory | Spotted B-86 Titan 15030 | -4/Factory | Lost 5 parts (1n2u2w) 15366 | -4/Factory | Build established: Gunner 16040 | -4/Factory | Sucked down chute 16040 | -4/Factory | Entered Waste 16109 | -4/Waste | Spotted C-40 Crusher 16118 | -4/Waste | Destroyed C-40 Crusher 16132 | -4/Waste | Spotted C-40 Crusher 16135 | -4/Waste | Spotted C-40 Crusher 16140 | -4/Waste | Destroyed C-40 Crusher 16158 | -4/Waste | Spotted C-40 Crusher 16165 | -4/Waste | Crushed by Compactor (1 part destroyed, 1 dropped) 16166 | -4/Waste | Spotted C-40 Crusher 16171 | -4/Waste | Crushed by Compactor (1 part destroyed, 2 dropped) 16176 | -4/Waste | Crushed by Compactor (1 part destroyed, 2 dropped) 16176 | -4/Waste | Crushed by Compactor (1 part destroyed, 1 dropped) 16179 | -4/Waste | Crushed by Compactor (1 part destroyed, 1 dropped) 16179 | -4/Waste | Crushed by Compactor (1 part destroyed, 2 dropped) 16182 | -4/Waste | Crushed by Compactor (1 part destroyed, 1 dropped) 16192 | -4/Waste | Core integrity fell below 50% 16213 | -4/Waste | Lost 8 parts (1p3n2u2w) 16224 | -4/Waste | Spotted C-40 Crusher 16260 | -4/Waste | Warlord forces began an assault 16615 | -4/Waste | Discovered new exit (range 11) 16667 | -4/Waste | Build established: Tank 17932 | -4/Waste | Build established: Derelict-Tank 18019 | -4/Waste | Entered Factory 18019 | -4/Factory | Accompanied by 18 allies 18552 | -4/Factory | Found Prototype Launcher 18553 | -4/Factory | Identified Scatter Rocket Array 18561 | -4/Factory | Found Scatter Rocket Array 18637 | -4/Factory | Murdered 4 allies 18639 | -4/Factory | Lost 4 allies 18737 | -4/Factory | Lost 5 allies 18875 | -4/Factory | Build established: Tank 19074 | -4/Factory | Core integrity fell below 20% 19079 | -4/Factory | Lost 3 parts (1n2u) 19116 | -4/Factory | Lost 4 parts (1n3u) 19222 | -4/Factory | Discovered new exit (range 9) 19232 | -4/Factory | Entered Research 19232 | -3/Research | Evolved 2 slots: Power x1, Utility x1 19244 | -3/Research | Lost 4 parts (3n1w) 19422 | -3/Research | Discovered new exit (range 6) 19427 | -3/Research | Entered another Research area 19427 | -2/Research | Evolved 2 slots: Propulsion x2 19450 | -2/Research | Lost 3 parts (1n2w) 19625 | -2/Research | Spotted B-90 Cyclops 19672 | -2/Research | Lost 8 parts (1p5u2w) 19751 | -2/Research | Discovered new exit (range 22) 19758 | -2/Research | Lost 7 parts (1p2n3u1w) 19772 | -2/Research | Entered Access 19772 | -1/Access | Spotted B-99 Colossus 19772 | -1/Access | Evolved 2 slots: Power x1, Propulsion x1 19797 | -1/Access | Lost 4 parts (4n) 19925 | -1/Access | Build established: Mutant 20115 | -1/Access | Core integrity fell below 50% 20138 | -1/Access | Core integrity fell below 20% 20173 | -1/Access | Lost 17 parts (2p11n4w) 20183 | -1/Access | Destroyed by P-80 Master with Micro Antimatter Reactor chain reaction Last Messages --------------- 20130_ Exp. Gyrokinetic Inverter destroyed. 20131_ Acquired Centrium Leg. 20135_ Slammed into S-43 Plague. 20135_ Destabilizing: System interference. 20135_ Enh. Optical Array temporarily disabled. 20137_ M-36 Artificer repairs H-81 Overseer. 20139_ P-80 Master resets U-05 Engineer, system corruption cleaned. 20142_ Imp. Gyrokinetic Inverter destroyed. 20142_ P-80 Master resets K-01 Serf, system corruption cleaned. 20143_ O-32 Director: "IFF HANDSHAKE FAILED. SECURING TERMINAL." 20145_ System corrupted: Imp. Gyrokinetic Inverter rejected. 20150_ S-43 Plague destroyed. 20157_ ALERT: Hostiles spotted, dispatching reinforcements to Terminal A016. 20158_ ALERT: Hostiles spotted, dispatching reinforcements to Terminal A017. 20168_ System corrupted: Energy discharge (-40). 20183_ SZ C6M8DVVK 8QDOMS LEO 20183_ Chain reaction triggered in Mic. Antimatter Reactor. 20183_ P-80 Master destroyed. Map ----- +----------------------------------------------------+ | ????????????????# #??????????????# #???????????? | | ??? ""??????????# #??????????????# #???????????? | | ? """ # ###### #??????????????# #???????????? | | ? "T + #?############## #???????????? | | ?? """ # #?# !! # #???????????? | | ?????????##/##### #?# !! # #???????????? | | ????????????????# #?# ! # #???????????? | | ????????????????# #?# # #???????????? | | ????????????????+ #?# # #???????????? | | ????????????????# #?# # ########/#??? | | ????????????????# #?# / | | ????????????????# #?# # ##+#####/#??? | | ????????????????# #?# # #???????????? | | ????????????????# #?# = # #???????????? | | ????????????????# #?# # #???????????? | | ????????????????# #?# # #???????????? | | ????????????????# #?#####/######## #???????????? | | ????????????????# #?????# #??????# #???????????? | | ????######?????## ##????# #??????# #???????????? | | ????# ####### ###### ######## #???????????? | | ????# + ?????????? | | ????# #???????????? | | ????# ####### ###p##;;####### #???????????? | | ?#####++############# ps= #?# #???????????? | | ?# #???# !%! #?# #???????????? | | ?# #???# =!@ #?# #???????????? | | ?# """"""" #???# #?#% #???????????? | | ?# """"""" #???# #?# +???????????? | | ?# #???# #?# #???????????? | | ?# #???# #?# #???????????? | | ?################???#############?# #???????????? | | ??????????????????????????????????# #???????????? | | ???????????????????????????"####### #???????????? | | ???????????????????????????" #???????????? | | ???????????????????????????" #???????????? | | ???????????????????????????" #???????????? | | ???????????????????????????" #???????????? | | ???????????????????????????" #???????????? | | ???????????????????????????" #???????????? | | ???????????????????????????" H #???????????? | | ???????????????????????????" #???????????? | | ???????????????????????????"""" "" #???????????? | | ???????????????????????????""""T"" ##??????????? | | ???????????????????????????"####### "#??????????? | | ??????????????????????????????????# ##??????????? | | ??????????????????????????????????# #???????????? | | ??????????????????????????????????# ############# | | ??????????????????????????????????#[%# | | ??????????????????????????????????#!*# | | ??????????????????????????????????#[*# ^ """" | +----------------------------------------------------+ Best States ------------- Heat Dissipation 52 Coolant Potential 100 Energy Generation 46 Energy Capacity 450 Matter Stores 422 Matter Capacity 450 Sight Range 22 Terrain Scan Density 10 Jamming Range 12 Cloak Strength 3 Power Amplification 30 Base Temperature (-) 100 Armor Coverage 900 Resistance: TH 10 Resistance: EM 15 Propulsion Shielding 66 Utility Shielding 66 Weapon Shielding 66 Evasion (%) 67 Targeting Accuracy 14 Recoil Reduction 5 Kinecelleration 40 Authchip Count 2 Item Schematics ----------------- Huge Storage Unit | -10/Materials | Hacked Hcp. Storage Unit | -10/Materials | Hacked Imp. Assault Rifle | -9/Materials | Scanalyzed Hrd. Light Armor Plating | -9/Materials | Scanalyzed Robot Schematics ------------------ None Fabricated ------------ Nothing Alien Tech Used ----------------- None Achievements -------------- Collateral Damage Challenges ------------ None Game ------ Seed ComponentSniperSplitter Manual? 0 Play Time 02:31:49 Cumulative 79.3 hours Start 2024.04.14 @ 13:09:25 End 2024.04.17 @ 17:37:03 Sessions 3 Manual Loads 0 Difficulty Rogue Special Mode None Game No. 80 Rogue 80 Adventurer 0 Explorer 0 Win Type - Total 1 Types 1/0/0/0/0/0/0/0/0 Lore% 36 Gallery% 49 Achievement% 41 Wizard Run 0 Options --------- Layout 0 ASCII 0 Keyboard 1 Movement Numpad Keybinds 0 Fullscreen 2 Font 24/Smallcaps Map View 76x50 Zoom Use 0% Tactical HUD 1 Map Filters NONE Filters NONE Steam 1 RUN: f9dcc92f-1a1a-49cb-b0fa-9b2ec6306944